Workbook

Sheet Приложение № 8
AA2: Приложение № 8
AA3: к Закону Приднестровской Молдавской Республики
AA4: "О республиканском бюджете на 2022 год"
A6: Основные характеристики Дорожного фонда Приднестровской Молдавской Республики на 2022 год
Z7: (руб.)
A8: действующая редакция | N8: предлагаемая редакция | AA8: Отклонения, руб.
A9: 1. | B9: Переходящие остатки по состоянию на 01.01.2022 года | M9: =SUM(M10:M11) -> 38513611 | N9: 1. | O9: Переходящие остатки по состоянию на 01.01.2022 года | Z9: =SUM(Z10:Z11) -> 38513611 | AA9: =Z9-M9 -> 0
A10: 1.1. | B10: Дорожного фонда на счете Министерства финансов Приднестровской Молдавской Республики | M10: 34263453 | N10: 1.1. | O10: Дорожного фонда на счете Министерства финансов Приднестровской Молдавской Республики | Z10: 34263453 | AA10: =Z10-M10 -> 0
A11: 1.2. | B11: Дорожного фонда на счетах местных бюджетов городов и районов, ВСЕГО, в том числе: | M11: 4250158 | N11: 1.2. | O11: Дорожного фонда на счетах местных бюджетов городов и районов, ВСЕГО, в том числе: | Z11: 4250158 | AA11: 0
A12: 2. | B12: ДОХОДЫ ВСЕГО, в том числе: | M12: =SUM(M13:M15) -> 220388554 | N12: 2. | O12: ДОХОДЫ ВСЕГО, в том числе: | Z12: =SUM(Z13:Z15) -> 225007957 | AA12: 4619403
A13: 2.1. | B13: Налог с владельцев транспортных средств, уплачиваемый юридическими лицами | M13: 11728432 | N13: 2.1. | O13: Налог с владельцев транспортных средств, уплачиваемый юридическими лицами | Z13: 11728432 | AA13: 0
A14: 2.2. | B14: Отчисления от налога на доходы организаций | M14: 83347743 | N14: 2.2. | O14: Отчисления от налога на доходы организаций | Z14: =83347743+4619403 -> 87967146 | AA14: 4619403
A15: 2.3. | B15: Отчисления от единого таможенного платежа в размере 14,34 % | M15: 125312379 | N15: 2.3. | O15: Отчисления от единого таможенного платежа в размере 14,34 % | Z15: 125312379 | AA15: 0
A16: 3. | B16: Возмещение в местный бюджет Рыбницкого района и города Рыбницы (счет дорожного фонда (субсидии)) необоснованно использованных средств Дорожного фонда в 2021 году во исполнение Постановления Счетной палаты Приднестровской Молдавской Республики от 27.12.2021 года № 15/V | M16: 433422 | N16: 3. | O16: Возмещение в местный бюджет Рыбницкого района и города Рыбницы (счет дорожного фонда (субсидии)) необоснованно использованных средств Дорожного фонда в 2021 году во исполнение Постановления Счетной палаты Приднестровской Молдавской Республики от 27.12.2021 года № 15/V | Z16: 433422 | AA16: 0
A17: 4. | B17: Возмещение в местный бюджет Каменского района и города Каменки (счет дорожного фонда (субсидии)) необоснованно использованных средств Дорожного фонда в 2021 году во исполнение Постановления Счетной палаты Приднестровской Молдавской Республики от 27.12.2021 года № 15/IV | M17: 173108 | N17: 4. | O17: Возмещение в местный бюджет Каменского района и города Каменки (счет дорожного фонда (субсидии)) необоснованно использованных средств Дорожного фонда в 2021 году во исполнение Постановления Счетной палаты Приднестровской Молдавской Республики от 27.12.2021 года № 15/IV | Z17: 173108 | AA17: 0
A18: 5. | B18: РАСХОДЫ ВСЕГО, в том числе: | M18: =SUM(M19+M52+M55+M58+M60+M43+M59) -> 228176141 | N18: 5. | O18: РАСХОДЫ ВСЕГО, в том числе: | Z18: =SUM(Z19+Z52+Z55+Z58+Z60+Z43+Z59) -> 232795544 | AA18: 4619403
A19: 5.1 | B19: Субсидии местным бюджетам на исполнение программ развития дорожной отрасли ВСЕГО, в т.ч.: | M19: =SUM(M24+M36+M37+M34+M35+M39+M38+M33) -> 142465095 | N19: 5.1 | O19: Субсидии местным бюджетам на исполнение программ развития дорожной отрасли ВСЕГО, в т.ч.: | Z19: =SUM(Z24+Z36+Z37+Z34+Z35+Z39+Z38+Z33) -> 142465095 | AA19: 0
A20: № п/п | B20: Наименование государственной администрации | C20: Доли для распределения государственными администрациями субсидий, направленных в местные бюджеты городов и районов | F20: Доля для распределения иных поступлений в Дорожный фонд ПМР | G20: Распределение средств для формирования программ развития дорожной отрасли, руб. | K20: Источники финансирования расходов по программам развития дорожной отрасли, руб. | M20: Итого субсидий на исполнение программ развития дорожной отрасли, руб. | N20: № п/п | O20: Наименование государственной администрации | P20: Доли для распределения государственными администрациями субсидий, направленных в местные бюджеты городов и районов | S20: Доля для распределения иных поступлений в Дорожный фонд ПМР | T20: Распределение средств для формирования программ развития дорожной отрасли, руб. | X20: Источники финансирования расходов по программам развития дорожной отрасли, руб. | Z20: Итого субсидий на исполнение программ развития дорожной отрасли, руб.
C21: на государственные дороги | D21: на улично-дорожную сеть | E21: Всего | G21: по автомобильным дорогам общего пользования, находящимся в гос. собственности | H21: по автомобильным дорогам общего пользования, находящимся в муниципальной собственности | K21: налог с владельцев транспортных средств | L21: иные поступления в Дорожный фонд | P21: на государственные дороги | Q21: на улично-дорожную сеть | R21: Всего | T21: по автомобильным дорогам общего пользования, находящимся в гос. собственности | U21: по автомобильным дорогам общего пользования, находящимся в муниципальной собственности | X21: налог с владельцев транспортных средств | Y21: иные поступления в Дорожный фонд | AA21: 0
H22: ВСЕГО | I22: в том числе: | U22: ВСЕГО | V22: в том числе: | AA22: 0
I23: по автом. дорогам общего пользования, находящимся в мун. собств. | J23: на стр-во и реконструкцию остановочных пунктов | V23: по автом. дорогам общего пользования, находящимся в мун. собств. | W23: на стр-во и реконструкцию остановочных пунктов | AA23: 0
A24: 5.1.1. | B24: Всего субсидий из республиканского бюджета, в том числе: | F24: =SUM(F25:F32) -> 1 | G24: =G28+G29+G30+G31+G32 -> 54234266 | H24: =H25+H26+H27+H28+H29+H30+H31+H32 -> 71168710 | I24: =SUM(I25:I32) -> 71168710 | J24: =SUM(J25:J32) -> 0 | K24: =SUM(K25:K32) -> 11728432 | L24: =SUM(L25:L32) -> 113674544 | M24: =SUM(M25:M32) -> 125402976 | N24: 5.1.1. | O24: Всего субсидий из республиканского бюджета, в том числе: | S24: =SUM(S25:S32) -> 1 | T24: =T28+T29+T30+T31+T32 -> 54234266 | U24: =U25+U26+U27+U28+U29+U30+U31+U32 -> 71168710 | V24: =SUM(V25:V32) -> 71168710 | W24: =SUM(W25:W32) -> 0 | X24: =SUM(X25:X32) -> 11728432 | Y24: =SUM(Y25:Y32) -> 113674544 | Z24: =SUM(Z25:Z32) -> 125402976 | AA24: 0
A25: а) | B25: г.Тирасполя | D25: 1 | E25: 1 | F25: 0.1282 | G25: 0 | H25: =M25*D25 -> 20101015 | I25: =H25-J25 -> 20101015 | J25: 0 | K25: 5533127 | L25: 14567888 | M25: =L25+K25 -> 20101015 | N25: а) | O25: г.Тирасполя | Q25: 1 | R25: 1 | S25: 0.1282 | T25: 0 | U25: =Z25*Q25 -> 20101015 | V25: =U25-W25 -> 20101015 | W25: 0 | X25: 5533127 | Y25: 14567888 | Z25: =Y25+X25 -> 20101015 | AA25: 0
A26: б) | B26: г. Днестровска | D26: 1 | E26: 1 | F26: 0.0028 | G26: 0 | H26: 590000 | I26: =H26-J26 -> 590000 | J26: 0 | K26: 273439 | L26: 316561 | M26: =L26+K26 -> 590000 | N26: б) | O26: г. Днестровска | Q26: 1 | R26: 1 | S26: 0.0028 | T26: 0 | U26: 590000 | V26: =U26-W26 -> 590000 | W26: 0 | X26: 273439 | Y26: 316561 | Z26: =Y26+X26 -> 590000 | AA26: 0
A27: в) | B27: г. Бендеры | D27: 1 | E27: 1 | F27: 0.1098 | G27: 0 | H27: 14057115 | I27: 14057115 | J27: 0 | K27: 1573381 | L27: 12483734 | M27: 14057115 | N27: в) | O27: г. Бендеры | Q27: 1 | R27: 1 | S27: 0.1098 | T27: 0 | U27: 14057115 | V27: 14057115 | W27: 0 | X27: 1573381 | Y27: 12483734 | Z27: 14057115 | AA27: 0
A28: г) | B28: Григориопольского района и г. Григориополя | C28: 0.5537 | D28: =E28-C28 -> 0.4463 | E28: 1 | F28: 0.12 | G28: 7782405 | H28: 6271619 | I28: 6271619 | J28: 0 | K28: 407114 | L28: 13646910 | M28: 14054024 | N28: г) | O28: Григориопольского района и г. Григориополя | P28: 0.5537 | Q28: =R28-P28 -> 0.4463 | R28: 1 | S28: 0.12 | T28: 7782405 | U28: 6271619 | V28: 6271619 | W28: 0 | X28: 407114 | Y28: 13646910 | Z28: 14054024 | AA28: 0
A29: д) | B29: Дубоссарского района и г. Дубоссары | C29: 0.5382 | D29: =E29-C29 -> 0.4618 | E29: 1 | F29: 0.146 | G29: 9311078 | H29: 7988817 | I29: 7988817 | J29: 0 | K29: 706315 | L29: 16593580 | M29: 17299895 | N29: д) | O29: Дубоссарского района и г. Дубоссары | P29: 0.5382 | Q29: =R29-P29 -> 0.4618 | R29: 1 | S29: 0.146 | T29: 9311078 | U29: 7988817 | V29: 7988817 | W29: 0 | X29: 706315 | Y29: 16593580 | Z29: 17299895 | AA29: 0
A30: е) | B30: Каменского района и г. Каменки | C30: 0.7963 | D30: 0.2037 | E30: 1 | F30: 0.0867 | G30: 8119288 | H30: 2076753 | I30: 2076753 | J30: 0 | K30: 338811 | L30: 9857230 | M30: 10196041 | N30: е) | O30: Каменского района и г. Каменки | P30: 0.7963 | Q30: 0.2037 | R30: 1 | S30: 0.0867 | T30: 8119288 | U30: 2076753 | V30: 2076753 | W30: 0 | X30: 338811 | Y30: 9857230 | Z30: 10196041 | AA30: 0
A31: ж) | B31: Рыбницкого района и г. Рыбницы | C31: 0.5611 | D31: 0.4389 | E31: 1 | F31: 0.1962 | G31: 13530143 | H31: 10583013 | I31: 10583013 | J31: 0 | K31: 1806688 | L31: 22306468 | M31: =L31+K31 -> 24113156 | N31: ж) | O31: Рыбницкого района и г. Рыбницы | P31: 0.5611 | Q31: 0.4389 | R31: 1 | S31: 0.1962 | T31: 13530143 | U31: 10583013 | V31: 10583013 | W31: 0 | X31: 1806688 | Y31: 22306468 | Z31: =Y31+X31 -> 24113156 | AA31: 0
A32: з) | B32: Слободзейского района и г. Слободзеи | C32: 0.6199 | D32: 0.3801 | E32: 1 | F32: 0.2103 | G32: 15491352 | H32: 9500378 | I32: 9500378 | J32: 0 | K32: 1089557 | L32: 23902173 | M32: 24991730 | N32: з) | O32: Слободзейского района и г. Слободзеи | P32: 0.6199 | Q32: 0.3801 | R32: 1 | S32: 0.2103 | T32: 15491352 | U32: 9500378 | V32: 9500378 | W32: 0 | X32: 1089557 | Y32: 23902173 | Z32: =Y32+X32 -> 24991730 | AA32: 0
A33: 5.1.2. | B33: Государственным администрациям городов и районов | C33: для перечисления 5,31% поступлений Дорожного фонда (за исключением налога с владельцев транспортных средств) на приобретение дорожной техники (Приложение № 8.4) | M33: 0 | N33: 5.1.2. | O33: Государственным администрациям городов и районов | P33: для перечисления 5,31% поступлений Дорожного фонда (за исключением налога с владельцев транспортных средств) на приобретение дорожной техники (Приложение № 8.4) | Z33: 0 | AA33: 0
A34: 5.1.3. | B34: Целевые субсидии государственной администрации Слободзейского района и города Слободзеи на строительство, реконструкцию и ремонт ливневой канализации в районе ул. Милева, г.Тирасполь, и с. Суклея, в том числе проектные работы | M34: 5000957 | N34: 5.1.3. | O34: Целевые субсидии государственной администрации Слободзейского района и города Слободзеи на строительство, реконструкцию и ремонт ливневой канализации в районе ул. Милева, г.Тирасполь, и с. Суклея, в том числе проектные работы | Z34: 5000957 | AA34: 0
A35: 5.1.4. | B35: Целевые субсидии государственной администрации города Тирасполя и города Днестровска на расширение участков дорог по ул. Одесской, уширение участка ул. Правды от ул. 25 Октября до ул. Карла Либкнехта и участка ул. Карла Либкнехта от ул. Правды до ул. Крупской (нечетная сторона) | M35: 7200000 | N35: 5.1.4. | O35: Целевые субсидии государственной администрации города Тирасполя и города Днестровска на расширение участков дорог по ул. Одесской, уширение участка ул. Правды от ул. 25 Октября до ул. Карла Либкнехта и участка ул. Карла Либкнехта от ул. Правды до ул. Крупской (нечетная сторона) | Z35: 7200000 | AA35: 0
A36: 5.1.5. | B36: Целевые субсидии государственной администрации Григориопольского района и города Григориополя на ликвидацию аварийной ситуации по а/д Тирасполь - Каменка (обход г. Григориополя) | M36: 1369400 | N36: 5.1.5. | O36: Целевые субсидии государственной администрации Григориопольского района и города Григориополя на ликвидацию аварийной ситуации по а/д Тирасполь - Каменка (обход г. Григориополя) | Z36: 1369400 | AA36: 0
A37: 5.1.6. | B37: Целевые субсидии государственной администрации Рыбницкого района и города Рыбницы на ликвидацию аварийной ситуации по а/д Тирасполь - Каменка, км 142-143 | M37: 1835751 | N37: 5.1.6. | O37: Целевые субсидии государственной администрации Рыбницкого района и города Рыбницы на ликвидацию аварийной ситуации по а/д Тирасполь - Каменка, км 142-143 | Z37: 1835751 | AA37: 0
A38: 5.1.7. | B38: Целевые субсидии государственной администрации г. Днестровска на реконструкцию и ремонт пешеходной дорожки, ведущей к Днестровскому водохранилищу | M38: 1400000 | N38: 5.1.7. | O38: Целевые субсидии государственной администрации г. Днестровска на реконструкцию и ремонт пешеходной дорожки, ведущей к Днестровскому водохранилищу | Z38: 1400000 | AA38: 0
A39: 5.1.8. | B39: Недофинансирование расходов Дорожного фонда ввиду отсутствия поступлений налога с владельцев транспортных средств, в том числе: | M39: =SUM(M40:M42) -> 256011 | N39: 5.1.8. | O39: Недофинансирование расходов Дорожного фонда ввиду отсутствия поступлений налога с владельцев транспортных средств, в том числе: | Z39: =SUM(Z40:Z42) -> 256011 | AA39: 0
B40: государственная администрация Дубоссарского района и города Дубоссары | M40: 195616 | O40: государственная администрация Дубоссарского района и города Дубоссары | Z40: 195616 | AA40: 0
B41: государственная администрация Каменского района и города Каменки | M41: 7257 | O41: государственная администрация Каменского района и города Каменки | Z41: 7257 | AA41: 0
B42: государственная администрация Рыбницкого района и города Рыбницы | M42: 53138 | O42: государственная администрация Рыбницкого района и города Рыбницы | Z42: 53138 | AA42: 0
A43: 5.2. | B43: за счет остатков Дорожного фонда на счетах местных бюджетов городов и районов, ВСЕГО, в том числе: | M43: =SUM(M44:M51) -> 4250158 | N43: 5.2. | O43: за счет остатков Дорожного фонда на счетах местных бюджетов городов и районов, ВСЕГО, в том числе: | Z43: =SUM(Z44:Z51) -> 4250158 | AA43: 0
A44: а) | B44: г.Тирасполя | M44: 1205262 | N44: а) | O44: г.Тирасполя | Z44: 1205262 | AA44: 0
A45: б) | B45: г. Днестровска | M45: 309259 | N45: б) | O45: г. Днестровска | Z45: 309259 | AA45: 0
A46: в) | B46: г. Бендеры | M46: 1900000 | N46: в) | O46: г. Бендеры | Z46: 1900000 | AA46: 0
A47: г) | B47: Григориопольского района и г. Григориополя | M47: 151174 | N47: г) | O47: Григориопольского района и г. Григориополя | Z47: 151174 | AA47: 0
A48: д) | B48: Дубоссарского района и г. Дубоссары | M48: 77095 | N48: д) | O48: Дубоссарского района и г. Дубоссары | Z48: 77095 | AA48: 0
A49: е) | B49: Каменского района и г. Каменки | M49: 499127 | N49: е) | O49: Каменского района и г. Каменки | Z49: 499127 | AA49: 0
A50: ж) | B50: Рыбницкого района и г. Рыбницы | M50: 65499 | N50: ж) | O50: Рыбницкого района и г. Рыбницы | Z50: 65499 | AA50: 0
A51: з) | B51: Слободзейского района и г. Слободзеи | M51: 42742 | N51: з) | O51: Слободзейского района и г. Слободзеи | Z51: 42742 | AA51: 0
A52: 5.3. | B52: Увеличение местного бюджета Рыбницкого района и города Рыбницы (счет дорожного фонда (субсидии)), образовавшееся во исполнение Постановления Счетной палаты Приднестровской Молдавской Республики от 27.12.2021 года № 15/V , в том числе: | M52: =SUM(M53:M54) -> 433422 | N52: 5.3. | O52: Увеличение местного бюджета Рыбницкого района и города Рыбницы (счет дорожного фонда (субсидии)), образовавшееся во исполнение Постановления Счетной палаты Приднестровской Молдавской Республики от 27.12.2021 года № 15/V , в том числе: | Z52: =SUM(Z53:Z54) -> 433422 | AA52: 0
B53: по автомобильным дорогам общего пользования, находящимся в государственной собственности, на содержание автомобильных дорог | M53: 285938 | O53: по автомобильным дорогам общего пользования, находящимся в государственной собственности, на содержание автомобильных дорог | Z53: 285938 | AA53: 0
B54: по автомобильным дорогам общего пользования, находящимся в муниципальной собственности, на ремонт дорог в сельской местности | M54: 147484 | O54: по автомобильным дорогам общего пользования, находящимся в муниципальной собственности, на ремонт дорог в сельской местности | Z54: 147484 | AA54: 0
A55: 5.4. | B55: Увеличение местного бюджета Каменского района и города Каменки (счет дорожного фонда (субсидии)), образовавшееся во исполнение Постановления Счетной палаты Приднестровской Молдавской Республики от 27.12.2021 года № 15/IV , в том числе: | M55: =SUM(M56:M57) -> 173108 | N55: 5.4. | O55: Увеличение местного бюджета Каменского района и города Каменки (счет дорожного фонда (субсидии)), образовавшееся во исполнение Постановления Счетной палаты Приднестровской Молдавской Республики от 27.12.2021 года № 15/IV , в том числе: | Z55: =SUM(Z56:Z57) -> 173108 | AA55: 0
B56: по автомобильным дорогам общего пользования, находящимхся в государственной собственности, на содержание автомобильных дорог | M56: 170568 | O56: по автомобильным дорогам общего пользования, находящимхся в государственной собственности, на содержание автомобильных дорог | Z56: 170568 | AA56: 0
B57: по автомобильным дорогам общего пользования, находящимся в муниципальной собственности | M57: 2540 | O57: по автомобильным дорогам общего пользования, находящимся в муниципальной собственности | Z57: 2540 | AA57: 0
A58: 5.5. | B58: Министерство экономического развития Приднестровской Молдавской Республики | C58: для перечисления 0,68% поступлений Дорожного фонда ПМР (за исключением налога с владельцев транспортных средств) на проведение работ по обследованию мостовых сооружений и на выполнение проектно-изыскательских работ, связанных с содержанием, ремонтом и развитием (строительством, реконструкцией) автомобильных дорог общего пользования и их составных частей, находящихся в государственной и муниципальной собственности, и экспертизе проектно-сметной документации (Приложение № 8.2) | M58: 1423760 | N58: 5.5. | O58: Министерство экономического развития Приднестровской Молдавской Республики | P58: для перечисления 0,68% поступлений Дорожного фонда ПМР (за исключением налога с владельцев транспортных средств) на проведение работ по обследованию мостовых сооружений и на выполнение проектно-изыскательских работ, связанных с содержанием, ремонтом и развитием (строительством, реконструкцией) автомобильных дорог общего пользования и их составных частей, находящихся в государственной и муниципальной собственности, и экспертизе проектно-сметной документации (Приложение № 8.2) | Z58: 1423760 | AA58: 0
C59: для перечисления 2,25% поступлений Дорожного фонда (за исключением налога с владельцев транспортных средств) на погашение задолженности дорожных предприятий перед ГУП "Дубоссарская ГЭС" (Приложение № 8.3) | M59: 0 | P59: для перечисления 2,25% поступлений Дорожного фонда (за исключением налога с владельцев транспортных средств) на погашение задолженности дорожных предприятий перед ГУП "Дубоссарская ГЭС" (Приложение № 8.3) | Z59: 0 | AA59: 0
A60: 5.6. | B60: Резерв Дорожного фонда | M60: 79430598 | N60: 5.6. | O60: Резерв Дорожного фонда | Z60: 84050001 | AA60: 4619403
A61: 6. | B61: Министерство финансов Приднестровской Молдавской Республики | C61: на финансирование расходов по социально защищенным статьям | M61: 31332554 | N61: 6. | O61: Министерство финансов Приднестровской Молдавской Республики | P61: на финансирование расходов по социально защищенным статьям | Z61: 31332554 | AA61: 0
